Workbook

Sheet Меню 40 руб.!!
A3: Утверждаю____________ | B3: Директор ООО"АБК-Пэймент" | H3: Согласовано | J3: Руководитель образовательного
B4: Рахматуллин Р.Р. | J4: учреждения
B6: Примерное цикличное двенадцатидневное меню группы продленного дня для учащихся общеобразовательных учреждений
B7: Бугульминского муниципального района Республики Татарстан
B8: 1 неделя
A9: № Сб.рец | B9: Наименование продуктов | C9: Выход,г | D9: Белки | E9: Жиры | F9: Угл-ды | G9: Энер.ценность (ККАЛ) | H9: В1 | I9: С | J9: А | K9: Е | L9: Са | M9: Р | N9: Mg | O9: Fe
B10: ПОНЕДЕЛЬНИК
B11: Меню дополнительного питания
A12: № 82,105 Сбор.рец. На прод-ию для обуч. Во всех образ.учреж-Дели 2017 | B12: Борщ из св.капусты с картофелем, с мясными фрикадельками,со сметаной | C12: 250/15/7 | D12: 4.97 | E12: 7.73 | F12: 11.30 | G12: 144.48 | H12: 0.06 | I12: 10.78 | J12: 9.99 | K12: 2.52 | L12: 59.11 | M12: 90.00 | N12: 31.58 | O12: 1.47
A13: № 173 Сбор.рец. На прод-ию для обуч. Во всех образ.учреж-Дели 2017 | B13: Каша пшеничная молочная с маслом сливочным | C13: 180/3 | D13: 7.73 | E13: 5.60 | F13: 39.81 | G13: 241.20 | H13: 0.126 | I13: 86.40% | J13: 25.32 | K13: 0.627 | L13: 130.653 | M13: 197.37 | N13: 39.897 | O13: 2.094
A14: № 376 Сбор.рец. На прод-ию для обуч. Во всех образ.учреж-Дели 2017 | B14: Чай с сахаром | C14: 190/10 | D14: 0.07 | E14: 0.02 | F14: 10.01 | G14: 40 | H14: 0 | I14: 0.03 | J14: 0 | K14: 0 | L14: 10.95 | M14: 2.8 | N14: 1.4 | O14: 0.265
A15: табл 6 стр 134,144,Хим. Состав и калорийность российских продуктов питания Дели + 2012 | B15: Хлеб ржаной/пшеничный | C15: 20/20 | D15: 2.84 | E15: 0.4 | F15: 17.76 | G15: 86.6 | H15: 0.056 | I15: 0 | J15: 0 | K15: 0.5 | L15: 9.8 | M15: 43 | N15: 12.2 | O15: 1
B16: Итого: | C16: 695 | D16: =D12+D13+D14+D15 -> 15.61 | E16: =E12+E13+E14+E15 -> 13.75 | F16: 78.88 | G16: 512.28 | H16: 0.24 | I16: 11.67 | J16: 35.31 | K16: 3.64 | L16: 210.51 | M16: 333.17 | N16: 85.08 | O16: 4.83
B18: ВТОРНИК
B19: Меню дополнительного питания
A20: № 96 Сбор.рец. На прод-ию для обуч. Во всех образ.учреж-Дели 2017 | B20: Рассольник ленинградский на курином(костном)бульоне,со сметаной | C20: 250/10 | D20: 2.98 | E20: 6.77 | F20: 12.34 | G20: 127.83 | H20: 0.10 | I20: 8.42 | J20: 10.00 | K20: 2.38 | L20: 39.70 | M20: 62.83 | N20: 25.08 | O20: 0.95
A21: № 173 Сбор.рец. На прод-ию для обуч. Во всех образ.учреж-Дели 2017 | B21: Каша геркулесовая молочная с маслом сливочным | C21: 180/3 | D21: 8.09 | E21: 7.75 | F21: 36.07 | G21: 246.60 | H21: 0.19 | I21: 0.86 | J21: 25.32 | K21: 0.59 | L21: 141.35 | M21: 236.57 | N21: 64.85 | O21: 1.87
A22: ТТК | B22: Компот из свежемороженных фруктов | C22: 200 | D22: 0.24 | E22: 0.14 | F22: 7.84 | G22: 75 | H22: 0.018 | I22: 1.8 | J22: 0 | K22: 0.16 | L22: 14.808 | M22: 6.2 | N22: 5.112 | O22: 0.612
A23: табл 6 стр 134,144,Хим. Состав и калорийность российских продуктов питания Дели + 2012 | B23: Хлеб ржаной/пшеничный | C23: 20/20 | D23: 2.84 | E23: 0.4 | F23: 17.76 | G23: 86.6 | H23: 0.056 | I23: 0 | J23: 0 | K23: 0.5 | L23: 9.8 | M23: 43 | N23: 12.2 | O23: 1
B24: Итого: | C24: 683 | D24: =SUM(D20:D23) -> 14.15 | E24: =SUM(E20:E23) -> 15.05 | F24: 74.01 | G24: 536.03 | H24: 0.36 | I24: 11.08 | J24: 35.32 | K24: 3.63 | L24: 205.65 | M24: 348.60 | N24: 107.23 | O24: 4.43
B27: СРЕДА
B28: Меню дополнительного питания
A29: № 102,105 Сбор.рец. На прод-ию для обуч. Во всех образ.учреж-Дели 2017 | B29: Суп картофельный с горохом с мясными фрикадельками | C29: 250/15 | D29: 8.48 | E29: 7.03 | F29: 16.65 | G29: 177.65 | H29: 0.24 | I29: 5.90 | J29: 3.00 | K29: 2.52 | L29: 45.90 | M29: 119.23 | N29: 40.40 | O29: 2.28
A30: № 174 Сбор.рец. На прод-ию для обуч. Во всех образ.учреж-Дели 2017 | B30: Каша кукурузная молочная с маслом сливочным | C30: 180/3 | D30: 6.82 | E30: 5.64 | F30: 45.62 | G30: 261.00 | H30: 0.08 | I30: 0.86 | J30: 25.32 | K30: 0.29 | L30: 123.18 | M30: 136.45 | N30: 28.45 | O30: 1.50
A31: промышленного производства | B31: Булочка | C31: 50 | D31: 3.39 | E31: 6.98 | F31: 21.07 | G31: 160.5 | H31: 0.06 | I31: 0 | J31: 0 | K31: 2.55 | L31: 9.3 | M31: 32.1 | N31: 13.1 | O31: 0.6
A32: № 344 Сбор.рец. На прод-ию для обуч. Во всех образ.учреж-Дели 2017 | B32: Компот из сухофруктов | C32: 200 | D32: 0.66 | E32: 0.09 | F32: 12.01 | G32: 92.80 | H32: 0.02 | I32: 0.73 | J32: 0.00 | K32: 0.51 | L32: 32.48 | M32: 23.44 | N32: 17.46 | O32: 0.70
A33: табл 6 стр,144,Хим. Состав и калорийность российских продуктов питания Дели + 2012 | B33: Хлеб ржаной | C33: 20 | D33: 1.32 | E33: 0.24 | F33: 7.92 | G33: 39.60 | H33: 0.03 | I33: 0.00 | J33: 0 | K33: 0.28 | L33: 5.80 | M33: 30.00 | N33: 9.40 | O33: 0.78
B34: Итого: | C34: 718 | D34: =SUM(D29:D33) -> 20.67 | E34: =SUM(E29:E33) -> 19.98 | F34: 103.27 | G34: 731.55 | H34: 0.43 | I34: 7.49 | J34: 28.32 | K34: 6.15 | L34: 216.66 | M34: 341.22 | N34: 108.81 | O34: 5.86
B36: ЧЕТВЕРГ
B37: Меню дополнительного питания
A38: № 113,288 Сбор.рец. На прод-ию для обуч. Во всех образ.учреж-Дели 2017; №366 дошкольн. 2016г | B38: Суп лапша домашняя с куриной грудкой | C38: 250/15 | D38: 6.075 | E38: 8.328 | F38: 11.6725 | G38: 155.05 | H38: 0.056 | I38: 0.854 | J38: 21.23 | K38: 2.7115 | L38: 36.59 | M38: 63.1 | N38: 13.717 | O38: 0.932
A39: № 210 Сбор.рец. На прод-ию для обуч. Во всех образ.учреж-Дели 2017 | B39: Омлет натуральный | C39: 180 | D39: 18.17 | E39: 20.29 | F39: 3.24 | G39: 268.30 | H39: 0.14 | I39: 0.34 | J39: 358.30 | K39: 0.80 | L39: 131.30 | M39: 291.40 | N39: 21.19 | O39: 3.43
A40: № 376 Сбор.рец. На прод-ию для обуч. Во всех образ.учреж-Дели 2017 | B40: Чай с сахаром | C40: 190/10 | D40: 0.07 | E40: 0.02 | F40: 10.01 | G40: 40 | H40: 0 | I40: 0.03 | J40: 0 | K40: 0 | L40: 10.95 | M40: 2.8 | N40: 1.4 | O40: 0.265
A41: табл 6 стр 134,144,Хим. Состав и калорийность российских продуктов питания Дели + 2012 | B41: Хлеб ржаной/пшеничный | C41: 20/20 | D41: 2.84 | E41: 0.4 | F41: 17.76 | G41: 86.6 | H41: 0.056 | I41: 0 | J41: 0 | K41: 0.5 | L41: 9.8 | M41: 43 | N41: 12.2 | O41: 1
B42: Итого: | C42: 685 | D42: =SUM(D38:D41) -> 27.15 | E42: =SUM(E38:E41) -> 29.04 | F42: 42.69 | G42: 549.95 | H42: 0.25 | I42: 1.22 | J42: 379.53 | K42: 4.01 | L42: 188.64 | M42: 400.30 | N42: 48.51 | O42: 5.63
B44: ПЯТНИЦА
B45: Меню дополнительного питания
A46: № 87,105 Сбор.рец. На прод-ию для обуч. Во всех образ.учреж-Дели 2017 | B46: Суп картофельный с фасолью,с мясными фрикадельками | C46: 250/15 | D46: 8.11 | E46: 7.10 | F46: 16.25 | G46: 162.67 | H46: 0.17 | I46: 5.89 | J46: 3.00 | K46: 2.54 | L46: 53.50 | M46: 169.12 | N46: 43.13 | O46: 2.04
A47: № 396 Сбор.рец. На прод-ию для обуч. Во всех образ.учреж-Дели 2017 | B47: Блины с маслом сливочным | C47: 90/5 | D47: 6.604 | E47: 8.533 | F47: 34.673 | G47: 241.80 | H47: 0.138 | I47: 0.918 | J47: 34.4 | K47: 2.191 | L47: 96.36 | M47: 120.3 | N47: 29.4 | O47: 1.06
A48: № 377 Сбор.рец. На прод-ию для обуч. Во всех образ.учреж-Дели 2017 | B48: Чай с сахаром и лимоном | C48: 185/10/5 | D48: 0.112 | E48: 0.018 | F48: 10.15 | G48: 41.32 | I48: 2.03 | J48: 0 | K48: 0.006 | L48: 13.25 | M48: 3.96 | N48: 2.16 | O48: 0.333
A49: табл 6 стр 134,144,Хим. Состав и калорийность российских продуктов питания Дели + 2012 | B49: Хлеб ржаной/пшеничный | C49: 20/20 | D49: 2.84 | E49: 0.4 | F49: 17.76 | G49: 86.6 | H49: 0.056 | I49: 0 | J49: 0 | K49: 0.5 | L49: 9.8 | M49: 43 | N49: 12.2 | O49: 1
B50: Итого: | C50: 600 | D50: =SUM(D46:D49) -> 17.67 | E50: =SUM(E46:E49) -> 16.05 | F50: 78.83 | G50: 532.39 | H50: 0.36 | I50: 8.84 | J50: 37.40 | K50: 5.23 | L50: 172.91 | M50: 336.38 | N50: 86.89 | O50: 4.43
B52: СУББОТА
B53: Меню дополнительного питания
A54: № 98 Сбор.рец. На прод-ию для обуч. Во всех образ.учреж-Дели 2017 | B54: Суп крестьянский с крупой с птицей,со сметаной | C54: 250/10/7 | D54: 4.00 | E54: 7.82 | F54: 6.38 | G54: 113.78 | H54: 0.05 | I54: 10.14 | J54: 12.81 | K54: 2.41 | L54: 47.39 | M54: 54.24 | N54: 16.83 | O54: 0.78
A55: № 173 Сбор.рец. На прод-ию для обуч. Во всех образ.учреж-Дели 2017 | B55: Каша молочная полбяная с маслом сливочным | C55: 180/3 | D55: 7.73 | E55: 5.60 | F55: 39.81 | G55: 241.20 | H55: 0.13 | I55: 0.86 | J55: 25.32 | K55: 0.63 | L55: 130.65 | M55: 197.37 | N55: 39.90 | O55: 2.09
A56: табл 6 стр 136 Дели +2012 | B56: Печенье | C56: 50 | D56: 3.75 | E56: 4.9 | F56: 37.2 | G56: 208.50 | H56: 0.04 | I56: 0.00 | J56: 5 | K56: 1.75 | L56: 14.5 | M56: 45 | N56: 10 | O56: 1.05
A57: ТТК составлена на основании акта проработки 2019 г от 29.10.19 | B57: Напиток из замороженных фруктов | C57: 200 | D57: 0.24 | E57: 0.14 | F57: 7.84 | G57: 75.00 | H57: 0.02 | I57: 1.80 | J57: 0.00 | K57: 0.16 | L57: 14.81 | M57: 6.20 | N57: 5.11 | O57: 0.61
A58: табл 6 стр,144,Хим. Состав и калорийность российских продуктов питания Дели + 2012 | B58: Хлеб ржаной | C58: 20 | D58: 1.32 | E58: 0.24 | F58: 7.92 | G58: 39.60 | H58: 0.03 | I58: 0.00 | J58: 0 | K58: 0.28 | L58: 5.80 | M58: 30.00 | N58: 9.40 | O58: 0.78
B59: Итого: | C59: 720 | D59: =SUM(D54:D58) -> 17.04 | E59: =SUM(E54:E58) -> 18.71 | F59: 99.15 | G59: 678.08 | H59: 0.27 | I59: 12.80 | J59: 43.13 | K59: 5.23 | L59: 213.15 | M59: 332.81 | N59: 81.24 | O59: 5.31
B61: Всего за 6 дней: | C61: =C16+C24+C34+C42+C50+C59 -> 4101 | D61: =D16+D24+D34+D42+D50+D59 -> 112.29 | E61: =E16+E24+E34+E42+E50+E59 -> 112.58 | F61: 476.82 | G61: 3540.27 | H61: 1.91 | I61: 53.10 | J61: 559.01 | K61: 27.90 | L61: 1207.53 | M61: 2092.48 | N61: 517.76 | O61: 30.49
A64: 2 неделя
B65: ПОНЕДЕЛЬНИК
B66: Меню дополнительного питания
A67: № 88,105 Сбор.рец. На прод-ию для обуч. Во всех образ.учреж-Дели 2017 | B67: Щи из свежей капусты на курином бульоне с картофелем с мясом и сметаной | C67: 250/10/10 | D67: 5.02 | E67: 8.21 | F67: 8.37 | G67: 135.37 | H67: 0.07 | I67: 15.89 | J67: 13.00 | K67: 2.48 | L67: 61.28 | M67: 86.25 | N67: 27.86 | O67: 1.08
A68: № 174 Сбор.рец. На прод-ию для обуч. Во всех образ.учреж-Дели 2017 | B68: Каша кукурузная молочная с маслом сливочным | C68: 180/3 | D68: 6.82 | E68: 5.64 | F68: 45.62 | G68: 261.00 | H68: 0.08 | I68: 0.86 | J68: 25.32 | K68: 0.29 | L68: 123.18 | M68: 136.45 | N68: 28.45 | O68: 1.50
A69: промышленного производства | B69: Булочка | C69: 50 | D69: 3.64 | E69: 6.26 | F69: 21.96 | G69: 159.00 | H69: 0.06 | I69: 0.00 | J69: 2.00 | K69: 2.33 | L69: 9.90 | M69: 35.00 | N69: 13.70 | O69: 0.65
A70: № 342 Сбор.рец. На прод-ию для обуч. Во всех образ.учреж-Дели 2017 | B70: Компот из свежих яблок | C70: 200 | D70: 0.16 | E70: 0.16 | F70: 27.88 | G70: 114.6 | H70: 0.012 | I70: 0.9 | J70: 0 | K70: 0.08 | L70: 14.18 | M70: 4.4 | N70: 5.14 | O70: 0.952
A71: табл 6 стр,144,Хим. Состав и калорийность российских продуктов питания Дели + 2012 | B71: Хлеб ржаной | C71: 20 | D71: 1.32 | E71: 0.24 | F71: 7.92 | G71: 39.60 | H71: 0.03 | I71: 0.00 | J71: 0 | K71: 0.28 | L71: 5.80 | M71: 30.00 | N71: 9.40 | O71: 0.78
B72: Итого: | C72: 723 | D72: =D71+D70+D69+D68+D67 -> 16.96 | E72: =E71+E70+E69+E68+E67 -> 20.51 | F72: 111.76 | G72: 709.57 | H72: 0.26 | I72: 17.65 | J72: 40.32 | K72: 5.46 | L72: 214.34 | M72: 292.10 | N72: 84.54 | O72: 4.96
B75: ВТОРНИК
B77: Меню дополнительного питания
A78: № 102,105 Сбор.рец. На прод-ию для обуч. Во всех образ.учреж-Дели 2017 | B78: Суп картофельный с горохом с мясными фрикадельками | C78: 250/15 | D78: 8.48 | E78: 7.03 | F78: 16.65 | G78: 177.65 | H78: 0.24 | I78: 5.90 | J78: 3.00 | K78: 2.52 | L78: 45.90 | M78: 119.23 | N78: 40.40 | O78: 2.28
A79: № 223 Сбор.рец. На прод-ию для обуч. Во всех образ.учреж-Дели 2017 | B79: Запеканка творожная с повидлом | C79: 130/20 | D79: 22.70 | E79: 20.02 | F79: 21.42 | G79: 356.20 | H79: 0.08 | I79: 0.34 | J79: 118.30 | K79: 0.75 | L79: 191.13 | M79: 272.51 | N79: 30.65 | O79: 1.07
A80: № 376 Сбор.рец. На прод-ию для обуч. Во всех образ.учреж-Дели 2017 | B80: Чай с сахаром | C80: 190/10 | D80: 0.07 | E80: 0.02 | F80: 10.01 | G80: 40 | H80: 0 | I80: 0.03 | J80: 0 | K80: 0 | L80: 10.95 | M80: 2.8 | N80: 1.4 | O80: 0.265
A81: табл 6 стр 134,144,Хим. Состав и калорийность российских продуктов питания Дели + 2012 | B81: Хлеб ржаной/пшеничный | C81: 20/20 | D81: 2.84 | E81: 0.4 | F81: 17.76 | G81: 86.6 | H81: 0.056 | I81: 0 | J81: 0 | K81: 0.5 | L81: 9.8 | M81: 43 | N81: 12.2 | O81: 1
C82: 655 | D82: =SUM(D78:D81) -> 34.09 | E82: =SUM(E78:E81) -> 27.47 | F82: 65.84 | G82: 660.45 | H82: 0.38 | I82: 6.27 | J82: 121.30 | K82: 3.77 | L82: 257.78 | M82: 437.54 | N82: 84.66 | O82: =SUM(O78:O81) -> 4.61
B85: СРЕДА
B86: Меню дополнительного питания
A87: № 99,105 Сбор.рец. На прод-ию для обуч. Во всех образ.учреж-Дели 2017 | B87: Суп из овощей с мясными фрикадельками,со сметаной | C87: 250/15/10 | D87: 4.84 | E87: 8.25 | F87: 9.62 | G87: 140.87 | H87: 0.09 | I87: 10.49 | J87: 13.00 | K87: 2.45 | L87: 46.88 | M87: 86.52 | N87: 26.48 | O87: 1.03
A88: № 396 Сбор.рец. На прод-ию для обуч. Во всех образ.учреж-Дели 2017 | B88: Блины с маслом сливочным | C88: 90/25 | D88: 19.38 | E88: 13.14 | F88: 106.49 | G88: 621.80 | H88: 0.38 | I88: 2.70 | J88: 38.40 | K88: 5.70 | L88: 333.01 | M88: 374.05 | N88: 86.90 | O88: 2.85
A89: ТТК | B89: Кисель | C89: 200 | D89: 0.24 | E89: 0.12 | F89: 35.76 | G89: 145.08 | H89: 0 | I89: 80 | J89: 0 | K89: 0.18 | L89: 8.2 | M89: 6.42 | N89: 0.96 | O89: 0.28
A90: табл 6 стр 134,144,Хим. Состав и калорийность российских продуктов питания Дели + 2012 | B90: Хлеб ржаной/пшеничный | C90: 20/20 | D90: 2.84 | E90: 0.4 | F90: 17.76 | G90: 86.6 | H90: 0.056 | I90: 0 | J90: 0 | K90: 0.5 | L90: 9.8 | M90: 43 | N90: 12.2 | O90: 1
B91: Итого: | C91: 630 | D91: =D87+D88+D90+D89 -> 27.30 | E91: =E87+E88+E90+E89 -> 21.90 | F91: 169.63 | G91: 994.35 | H91: 0.52 | I91: 93.19 | J91: 51.40 | K91: 8.83 | L91: 397.89 | M91: 509.99 | N91: 126.54 | O91: 5.16
B92: ЧЕТВЕРГ
B93: Меню дополнительного питания
A94: № 96 Сбор.рец. На прод-ию для обуч. Во всех образ.учреж-Дели 2017 | B94: Рассольник ленинградский на курином бульоне,со сметаной | C94: 250/10 | D94: 2.98 | E94: 6.77 | F94: 12.34 | G94: 127.83 | H94: 0.10 | I94: 8.42 | J94: 10.00 | K94: 2.38 | L94: 39.70 | M94: 62.83 | N94: 25.08 | O94: 0.95
A95: ТТК акт проработки от 25.12.2019 | B95: Жаркое из птицы | C95: 50/150 | D95: 17.01 | E95: 15.27 | F95: 41.76 | G95: 373.54 | H95: 0.33 | I95: 52.13 | J95: 29.10 | K95: 3.02 | L95: 57.91 | M95: 230.93 | N95: 81.56 | O95: 3.38
A96: № 376 Сбор.рец. На прод-ию для обуч. Во всех образ.учреж-Дели 2017 | B96: Чай с сахаром | C96: 190/10 | D96: 0.07 | E96: 0.02 | F96: 10.01 | G96: 40 | H96: 0 | I96: 0.03 | J96: 0 | K96: 0 | L96: 10.95 | M96: 2.8 | N96: 1.4 | O96: 0.265
A97: табл 6 стр 134,144,Хим. Состав и калорийность российских продуктов питания Дели + 2012 | B97: Хлеб ржаной/пшеничный | C97: 20/20 | D97: 2.84 | E97: 0.4 | F97: 17.76 | G97: 86.6 | H97: 0.056 | I97: 0 | J97: 0 | K97: 0.5 | L97: 9.8 | M97: 43 | N97: 12.2 | O97: 1
B98: Итого: | C98: 700 | D98: =D94+D95+D96+D97 -> 22.89 | E98: =E94+E95+E96+E97 -> 22.45 | F98: 81.87 | G98: 627.96 | H98: 0.48 | I98: 60.58 | J98: 39.10 | K98: 5.90 | L98: 118.36 | M98: 339.56 | N98: 120.23 | O98: 5.59
B100: ПЯТНИЦА
B101: Меню дополнительного питания
A102: № 1 Сбор.рец. На прод-ию для обуч. Во всех образ.учреж-Дели 2017 | B102: Бутерброд с маслом | C102: 40 | D102: 2.36 | E102: 7.49 | F102: 14.89 | G102: 136 | H102: 0.034 | J102: 40 | K102: 0.44 | L102: 8.4 | M102: 22.5 | N102: 4.2 | O102: 0.35
A103: № 113Сбор.рец. На прод-ию для обуч. Во всех образ.учреж-Дели 2017 | B103: Суп-лапша домашняя с мясом птицы | C103: 250/15 | D103: 6.11 | E103: 8.35 | F103: 11.67 | G103: 155.45 | H103: 0.06 | I103: 0.86 | J103: 21.32 | K103: 2.71 | L103: 36.67 | M103: 63.35 | N103: 13.75 | O103: 0.93
A104: № 174 Сбор.рец. На прод-ию для обуч. Во всех образ.учреж-Дели 2017 | B104: Каша рисовая молочная с маслом сливочным | C104: 180/3 | D104: 5.35 | E104: 5.42 | F104: 38.58 | G104: 225.00 | H104: 0.05 | I104: 0.86 | J104: 25.32 | K104: 0.14 | L104: 116.16 | M104: 139.90 | N104: 32.81 | O104: 0.53
A105: ТТК № 310 от 25.12.2019г | B105: Напиток из апельсинов | C105: 200 | D105: 0.47 | E105: 0.11 | F105: 24.22 | G105: 102.63 | H105: 0.02 | I105: 31.58 | J105: 0.00 | K105: 0.11 | L105: 18.49 | M105: 12.11 | N105: 6.84 | O105: 0.22
A106: табл 6 стр,144,Хим. Состав и калорийность российских продуктов питания Дели + 2012 | B106: Хлеб ржаной | C106: 20 | D106: 1.32 | E106: 0.24 | F106: 7.92 | G106: 39.60 | H106: 0.03 | I106: 0.00 | J106: 0 | K106: 0.28 | L106: 5.80 | M106: 30.00 | N106: 9.40 | O106: 0.78
B107: Итого: | C107: 708 | D107: =D102+D103+D104+D105+D106 -> 15.62 | E107: =E102+E103+E104+E105+E106 -> 21.60 | F107: 97.28 | G107: 658.68 | H107: 0.20 | I107: 33.30 | J107: 86.64 | K107: 3.68 | L107: 185.53 | M107: 267.85 | N107: 67.00 | O107: 2.81
B109: СУББОТА
B110: Меню дополнительного питания
A111: № 97,105Сбор.рец. На прод-ию для обуч. Во всех образ.учреж-Дели 2017 | B111: Суп картофельный с мясными фрикадельками | C111: 250/15 | D111: 5.33 | E111: 4.59 | F111: 16.98 | G111: 143.40 | H111: 0.14 | I111: 12.07 | J111: 3.00 | K111: 1.37 | L111: 33.68 | M111: 108.86 | N111: 36.23 | O111: 1.43
A112: № 174 Сбор.рец. На прод-ию для обуч. Во всех образ.учреж-Дели 2017 | B112: Каша пшенная молочная с маслом сливочным | C112: 180/3 | D112: 6.711 | E112: 6.198 | F112: 33.267 | G112: 216.90 | H112: 0.171 | I112: 1.05 | J112: 28.2 | K112: 0.123 | L112: 122.85 | M112: 164.133 | N112: 42.84 | O112: 1.095
A113: № 342 Сбор.рец. На прод-ию для обуч. Во всех образ.учреж-Дели 2017 | B113: Напиток из яблок | C113: 200 | D113: 0.16 | E113: 0.16 | F113: 27.88 | G113: 114.6 | H113: 0.012 | I113: 0.9 | J113: 0 | K113: 0.08 | L113: 14.18 | M113: 4.4 | N113: 5.14 | O113: 0.952
A114: табл 6 стр,144,Хим. Состав и калорийность российских продуктов питания Дели + 2012 | B114: Хлеб ржаной | C114: 30 | D114: 2.00 | E114: 0.36 | F114: 12.00 | G114: 60.00 | H114: 0.05 | I114: 0.00 | J114: 0 | K114: 0.42 | L114: 8.79 | M114: 45.45 | N114: 14.24 | O114: 1.18
B115: Итого: | C115: 678 | D115: =D111+D112+D113+D114 -> 14.20 | E115: =E111+E112+E113+E114 -> 11.31 | F115: 90.13 | G115: 534.90 | H115: 0.38 | I115: 14.03 | J115: 31.20 | K115: 2.00 | L115: 179.49 | M115: 322.85 | N115: 98.45 | O115: 4.66
B117: Всего: | C117: =C72+C82+C91+C98+C107+C115 -> 4094 | D117: =D72+D82+D91+D98+D107+D115 -> 131.06 | E117: =E72+E82+E91+E98+E107+E115 -> 125.24 | F117: 616.50 | G117: 4185.90 | H117: 2.21 | I117: 225.02 | J117: 369.96 | K117: 29.64 | L117: 1353.39 | M117: 2169.89 | N117: 581.43 | O117: 27.80
B118: Всего за 12 дней: | C118: =C61+C117 -> 8195 | D118: =D61+D117 -> 243.35 | E118: =E61+E117 -> 237.82 | F118: 1093.32 | G118: 7726.17 | H118: 4.12 | I118: 278.12 | J118: 928.97 | K118: 57.54 | L118: 2560.91 | M118: 4262.37 | N118: 1099.19 | O118: 58.29
B119: В среднем на 1 учащегося в день | C119: =C118/12 -> 683 | D119: =D118/12 -> 20.28 | E119: =E118/12 -> 19.82 | F119: 91.11 | G119: 643.85 | H119: 0.34 | I119: 23.18 | J119: 77.41 | K119: 4.80 | L119: 213.41 | M119: 355.20 | N119: 91.60 | O119: 4.86
